bitfinex/quotes_ETHUSD_20250326
["timestamp","ask_amount","ask_price","bid_price","bid_amount"]
[1742955663876,0.55,2063.7,2063.6,23.45503693]
[1742955665699,0.55,2063.7,2063.6,8.95503693]
[1742955665905,0.55,2063.7,2063.6,5.6116]
[1742955666313,0.55,2063.7,2063.6,20.1116]
[1742955668590,3.0,2064.1,2063.7,4.84555]
[1742955669215,2.32255596,2063.8,2063.5,1.2112063]
[1742955669712,2.32255596,2063.8,2063.3,24.19309]
[1742955669916,2.32255596,2063.8,2063.3,19.34647]
[1742955673143,2.32255596,2063.8,2063.2,5.65093]
[1742955673144,0.7955,2063.3,2062.9,0.5892521]
[1742955673423,3.7955,2063.3,2062.8,4.84766]
[1742955673724,3.7955,2063.3,2062.9,14.5]
[1742955673889,0.7955,2063.3,2063.0,4.84711]
[1742955674289,0.7955,2063.3,2062.9,4.84753]
[1742955674711,0.7955,2063.3,2063.0,19.34727]
[1742955674912,0.7955,2063.3,2063.0,21.76675]
[1742955676391,0.7955,2063.3,2063.0,16.91948]
[1742955676921,0.7955,2063.3,2063.0,21.76668]
[1742955678024,0.7955,2063.3,2063.1,4.84706]
[1742955678428,3.0,2063.5,2063.1,9.69403]
[1742955678739,3.7955,2063.5,2063.3,4.84649]
[1742955678891,4.659,2063.6,2063.3,4.84649]
[1742955679094,3.7955,2063.7,2063.3,4.84649]
[1742955679620,3.7955,2063.7,2063.4,14.5]
[1742955681523,2.32255596,2063.6,2063.2,1.211351]
[1742955681723,2.32255596,2063.6,2063.0,9.6943]
[1742955681898,2.32255596,2063.6,2063.1,19.34707]
[1742955683227,2.32255596,2063.6,2063.2,4.84679]
[1742955684137,2.32255596,2063.6,2063.1,19.34707]
[1742955684492,2.32255596,2063.6,2063.1,24.19401]
[1742955684701,2.32255596,2063.6,2063.1,21.846751]
[1742955684928,0.8062,2063.5,2063.1,14.5]
[1742955685297,0.8062,2063.5,2062.9,9.69474]
[1742955685700,5.32255596,2063.4,2062.9,24.19474]
[1742955685901,5.32255596,2063.4,2063.0,4.84725]
[1742955688642,5.32255596,2063.4,2062.6,0.96243082]
[1742955688643,3.758,2063.3,2062.6,0.96243082]
[1742955688935,5.32255596,2063.0,2062.5,4.84837]
[1742955689135,3.758,2062.9,2062.5,4.84837]
[1742955689337,5.32255596,2062.8,2062.2,4.84908]
[1742955689542,0.758,2062.7,2062.3,1.05251]
[1742955689732,0.758,2062.7,2062.4,4.84871]
[1742955689902,2.32255596,2063.0,2062.3,1.05251]
[1742955690109,0.758,2062.9,2062.5,4.84829]
[1742955690447,3.758,2062.9,2062.6,4.84815]
[1742955690609,0.758,2062.9,2062.7,4.84792]
[1742955690813,0.758,2063.1,2062.7,4.84792]
[1742955691333,0.758,2063.1,2062.6,4.84813]
[1742955691517,0.758,2063.1,2062.6,10.263653]
[1742955692138,0.758,2063.1,2062.7,4.84796]
[1742955692336,0.758,2063.1,2062.6,5.415523]
[1742955692337,0.758,2063.3,2062.9,4.84753]
[1742955692539,0.758,2063.3,2063.0,4.8473]
[1742955692713,2.32255596,2063.5,2063.1,4.84698]
[1742955692907,6.08055596,2063.5,2063.1,4.84698]
[1742955693308,3.08055596,2063.5,2063.1,4.84698]
[1742955693507,6.08055596,2063.5,2063.1,4.84698]
[1742955693710,3.08055596,2063.5,2063.0,0.969483]
[1742955694002,3.0,2063.4,2062.9,4.84743]
[1742955694218,3.0,2063.4,2062.9,4.79743]
[1742955695137,3.0,2063.4,2062.9,9.64481]
[1742955695434,3.0,2063.4,2063.0,4.84729]
[1742955695633,3.0,2063.4,2063.1,4.847]
[1742955696203,3.0,2063.4,2063.0,4.84729]
[1742955696955,3.0,2063.4,2063.0,9.69449]
[1742955697179,3.0,2063.4,2063.0,5.816639]
[1742955697458,3.0,2063.4,2063.0,4.84719]
[1742955697627,6.08055596,2063.5,2062.9,4.84753]
[1742955697822,6.08055596,2063.5,2062.8,4.84777]
[1742955698057,3.758,2063.5,2063.2,4.84675]
[1742955698771,3.758,2063.5,2063.2,9.69339]
[1742955698974,3.0,2063.4,2063.3,4.8466]
[1742955699138,0.7611,2063.7,2063.4,4.84622]
[1742955700379,0.7611,2063.7,2063.4,9.6924]
[1742955700544,0.7611,2063.7,2063.4,4.84618]
[1742955701277,0.7611,2063.7,2063.4,9.69236]
[1742955701431,0.7611,2063.7,2063.4,4.84618]
[1742955701944,0.7611,2063.7,2063.5,4.84612]
[1742955702158,0.7611,2063.9,2063.7,4.84548]
[1742955702491,0.7611,2064.1,2063.7,4.84548]
[1742955702875,3.7611,2064.1,2063.7,4.84548]
[1742955703189,0.7611,2064.1,2063.7,4.84548]
[1742955703992,2.32255596,2064.0,2063.5,4.84609]
[1742955704292,0.7611,2063.7,2063.3,4.8465]
[1742955705303,0.7611,2063.7,2063.3,9.693]
[1742955705603,0.7611,2063.7,2063.4,4.84635]
[1742955707313,3.7611,2063.7,2063.4,4.84635]
[1742955707461,3.7611,2063.9,2063.4,6.6857359]
[1742955707660,6.08365596,2063.9,2063.5,4.8461]
[1742955708056,0.7611,2063.9,2063.7,4.84552]
[1742955708302,3.08365596,2064.1,2063.7,4.84552]
[1742955708616,3.0,2064.0,2063.7,4.84552]
[1742955708756,3.0,2063.8,2063.4,4.84634]
[1742955709391,3.0,2063.8,2063.4,9.69252]
[1742955709608,3.0,2063.8,2063.5,4.84609]
[1742955710190,3.0,2063.8,2063.4,4.84633]
[1742955711318,3.0,2063.8,2063.4,9.69249]
[1742955711623,3.0,2063.8,2063.5,4.84607]
[1742955713495,3.0,2063.8,2063.4,5.9970999]
[1742955713693,3.0,2063.8,2063.4,4.84616]
[1742955715327,3.0,2063.8,2063.5,4.84602]
[1742955717342,3.0,2063.8,2063.5,9.69206]
[1742955717643,3.0,2063.8,2063.6,4.84589]
[1742955718042,3.0,2063.8,2063.5,4.84608]
[1742955719454,3.0,2064.0,2063.7,4.84566]
[1742955720648,3.14165596,2064.1,2063.5,1.735844]
[1742955720649,2.32255596,2063.9,2063.5,1.735844]
[1742955720868,2.32255596,2063.9,2063.5,4.84597]
[1742955721719,2.32255596,2063.9,2063.6,4.84576]
[1742955722647,2.32255596,2063.9,2063.7,4.84565]
[1742955722852,2.32255596,2063.9,2063.6,4.84576]
[1742955723443,2.32255596,2063.9,2063.6,9.69156]
[1742955723845,2.32255596,2063.9,2063.6,4.84576]
[1742955724154,6.14165596,2064.1,2063.6,4.84576]
[1742955724351,8.19150656,2064.1,2063.6,4.84576]
[1742955727168,6.14165596,2064.1,2063.6,4.84576]
[1742955727359,6.14165596,2064.1,2063.7,4.84544]
[1742955728860,6.14165596,2064.1,2063.7,9.69101]
[1742955729058,6.14165596,2064.1,2063.7,4.84544]
[1742955729456,6.14165596,2064.1,2063.8,4.84534]
[1742955729671,0.8191,2064.1,2063.9,4.84514]
[1742955729862,0.7829,2064.6,2064.0,4.84496]
[1742955730176,0.7829,2064.3,2064.0,4.84496]
[1742955730830,2.32255596,2064.4,2064.1,4.84472]
[1742955731282,2.32255596,2064.4,2064.0,4.84485]
[1742955731965,2.32255596,2064.4,2064.1,4.84464]
[1742955732161,2.32255596,2064.4,2064.1,9.68918]
[1742955732657,2.32255596,2064.4,2064.1,4.84454]
[1742955732859,0.7829,2064.5,2064.2,4.84432]
[1742955733172,6.10545596,2064.7,2064.3,4.84414]
[1742955733376,6.10545596,2064.7,2064.3,9.68821]
[1742955733531,3.10545596,2064.7,2064.3,5.812891]
[1742955733972,6.10545596,2064.7,2064.3,5.812891]
[1742955734142,6.10545596,2064.7,2064.4,4.84401]
[1742955734543,6.10545596,2064.7,2064.3,5.812891]
[1742955736036,6.10545596,2064.7,2064.3,0.968821]
[1742955736233,2.32255596,2064.5,2064.0,6.51157393]
[1742955736438,3.0,2064.3,2064.0,0.84921393]
[1742955736744,0.7829,2064.6,2064.3,4.84415]
[1742955739369,0.7829,2064.6,2064.4,4.84392]
[1742955739691,3.0,2064.7,2064.4,4.84392]
[1742955739879,5.32255596,2064.7,2064.3,4.8442]
[1742955740177,5.32255596,2064.7,2064.3,7.344818]
[1742955742580,5.32255596,2064.7,2064.3,7.344768]
[1742955742879,5.32255596,2064.7,2064.4,4.844]
[1742955743380,5.32255596,2064.7,2064.4,19.344]
[1742955743846,5.32255596,2064.7,2064.4,14.5]
[1742955744047,5.32255596,2064.7,2064.4,16.918868]
[1742955748265,5.32255596,2064.7,2064.0,5.69394393]
[1742955748266,0.7687,2064.4,2064.0,5.69394393]
[1742955748463,5.32255596,2064.3,2064.0,0.84921393]
[1742955748674,2.32255596,2064.3,2064.0,20.19416393]
[1742955749547,6.08644937,2064.4,2064.0,20.19416393]
[1742955751181,6.08644937,2064.4,2064.1,2.01941639]
[1742955751380,0.7687,2064.4,2064.1,6.86397639]
[1742955751556,3.7687,2064.6,2064.1,11.70860639]
[1742955751752,3.7687,2064.6,2064.2,4.84448]
[1742955752277,3.7687,2064.6,2064.2,19.34448]
[1742955752484,3.7687,2064.6,2064.2,22.05024703]
[1742955752684,3.7687,2064.6,2064.2,7.55024703]
[1742955752988,3.7687,2064.6,2064.1,4.84467]
[1742955753164,2.31721863,2064.5,2064.1,19.34467]
[1742955759990,2.31721863,2064.5,2064.1,14.5]
[1742955761463,2.31721863,2064.5,2064.1,19.3447]
[1742955765705,2.31721863,2064.5,2064.2,4.84449]
[1742955766301,2.31721863,2064.5,2064.1,4.8447]
[1742955766602,2.31721863,2064.5,2064.2,14.5]
[1742955766903,3.7687,2064.6,2064.2,14.5]
[1742955767899,3.7687,2064.6,2064.2,19.34439]
[1742955768081,3.7687,2064.6,2064.3,4.84422]
[1742955768582,3.7687,2064.6,2064.2,4.84439]
[1742955768583,3.7687,2064.6,2064.2,4.84447]
[1742955768783,3.7687,2064.6,2064.3,14.5]
[1742955772705,3.7687,2064.6,2064.3,19.3441]
[1742955773011,3.7687,2064.6,2064.3,14.5]
[1742955775203,3.7687,2064.6,2064.2,1.19350953]
[1742955775375,2.31721863,2064.5,2064.2,1.19350953]
[1742955775808,3.7687,2064.6,2064.2,1.19350953]
[1742955776105,6.08591863,2064.6,2064.2,1.19350953]
[1742955777091,0.7701,2064.5,2064.1,15.06939139]
[1742955777295,0.7701,2064.5,2064.1,14.5]
[1742955778377,0.7701,2064.5,2064.1,19.34471]
[1742955780421,0.7701,2064.5,2064.1,14.5]
[1742955781118,0.7701,2064.5,2064.1,19.34463]
[1742955782917,1.29781355,2064.4,2064.1,14.5]
[1742955783286,2.06791355,2064.5,2064.1,21.84865139]
[1742955784821,2.06791355,2064.5,2064.1,21.84849139]
[1742955785318,3.0,2064.7,2064.2,4.84432]
[1742955785524,4.29781355,2064.7,2064.2,4.84432]
[1742955785712,4.29781355,2064.7,2064.3,4.84416]
[1742955786022,1.29781355,2064.7,2064.4,14.5]
[1742955786834,5.10471355,2064.8,2064.4,14.5]
[1742955786989,5.10471355,2064.8,2064.4,19.34378]
[1742955787320,1.29781355,2064.7,2064.4,14.5]
[1742955788089,1.29781355,2064.6,2064.4,14.5]
[1742955788514,1.29781355,2064.7,2064.4,14.5]
[1742955789997,1.29781355,2064.7,2064.4,19.34401]
[1742955790203,1.29781355,2064.7,2064.4,21.89253311]
[1742955791647,1.29781355,2064.7,2064.4,22.71763311]
[1742955792703,5.10471355,2064.8,2064.4,22.71763311]
[1742955792899,2.10471355,2064.8,2064.4,22.71763311]
[1742955793131,0.8069,2064.8,2064.5,4.84378]
[1742955793297,0.8069,2064.8,2064.6,2.75614131]
[1742955793503,0.8069,2064.8,2064.5,4.84377]
[1742955794138,0.02,2064.9,2064.5,4.84377]
[1742955794430,1.31781355,2064.9,2064.6,4.84341]
[1742955794633,1.31781355,2064.9,2064.6,19.34341]
[1742955798143,1.31781355,2064.9,2064.6,4.84341]
[1742955798435,1.31781355,2064.9,2064.6,5.894638]
[1742955799838,1.29781355,2064.8,2064.6,5.894638]
[1742955800843,5.09591355,2064.7,2064.3,1.29703114]
[1742955801136,5.09591355,2064.7,2064.0,5.66993]
[1742955801137,1.29781355,2064.4,2064.0,5.66993]
[1742955801342,4.29781355,2064.4,2064.0,20.16993]
[1742955801520,1.29781355,2064.4,2064.0,20.16993]
[1742955802144,1.29781355,2064.4,2064.0,25.01476]
[1742955802342,1.29781355,2064.3,2064.0,25.01476]
[1742955802506,1.29781355,2064.3,2064.1,2.501476]
[1742955805422,1.29781355,2064.3,2064.0,10.51476]
[1742955805752,1.29781355,2064.2,2064.1,14.5]
[1742955806051,2.05261355,2064.2,2064.1,14.5]
[1742955808049,0.7548,2064.2,2064.1,14.5]
[1742955808256,1.29781355,2064.3,2064.1,14.5]
[1742955809260,1.29781355,2064.3,2064.1,16.918994]
[1742955809620,1.29781355,2064.4,2064.1,21.763684]
[1742955810143,1.29781355,2064.3,2064.1,16.918994]
[1742955815329,1.29781355,2064.2,2064.1,16.918994]
[1742955815560,1.29781355,2064.3,2064.1,16.918994]
[1742955815859,1.29781355,2064.3,2064.1,14.5]
[1742955817965,1.29781355,2064.2,2064.1,14.5]
[1742955818167,1.29781355,2064.2,2064.0,4.84477]
[1742955818566,1.29781355,2064.2,2064.1,14.5]
[1742955818870,9.94645355,2064.2,2063.6,5.66781]
[1742955819050,1.29781355,2063.8,2063.6,4.84581]
[1742955819242,1.29781355,2063.8,2063.7,14.5]
[1742955819444,1.29781355,2063.9,2063.7,14.5]
[1742955819637,1.29781355,2063.9,2063.7,19.34566]
[1742955820064,1.29781355,2063.8,2063.7,14.5]
[1742955820368,1.29781355,2063.8,2063.6,4.84587]
[1742955820744,1.29781355,2063.8,2063.7,14.5]
[1742955824061,1.29781355,2063.8,2063.5,4.84603]
[1742955824264,1.29781355,2063.7,2063.5,4.84603]
[1742955824569,1.29781355,2063.7,2063.5,14.5]
[1742955824741,1.29781355,2063.6,2063.4,4.84631]
[1742955824941,1.29781355,2063.6,2063.4,5.897784]
[1742955825844,1.29781355,2063.7,2063.4,10.743944]
[1742955826043,1.29781355,2063.8,2063.4,5.897634]
[1742955827450,1.29781355,2063.8,2063.5,4.84612]
[1742955828155,1.29781355,2063.7,2063.4,5.897634]
[1742955828596,1.29781355,2063.7,2063.4,4.84616]
[1742955828789,1.29781355,2063.7,2063.2,6.02813956]
[1742955828790,1.29781355,2063.5,2063.2,5.66865]
[1742955829105,1.29781355,2063.5,2063.3,4.84656]
[1742955829302,1.29781355,2063.5,2063.2,5.66865]
[1742955829504,1.29781355,2063.5,2063.2,10.51536]
[1742955829676,2.10191355,2063.6,2063.2,10.51536]
[1742955829876,2.10191355,2063.6,2063.3,4.84655]
[1742955836780,0.8041,2063.6,2063.4,4.84634]
[1742955837109,0.8041,2063.6,2063.4,4.84625]
[1742955837479,1.29781355,2063.7,2063.4,4.84625]
[1742955837805,1.29781355,2063.7,2063.3,4.84656]
[1742955838510,3.763,2063.8,2063.3,4.84638]
[1742955838709,1.29781355,2063.7,2063.4,4.84633]
[1742955839491,3.763,2063.8,2063.4,5.897801]
[1742955839834,5.06081355,2063.8,2063.4,5.897801]
[1742955840011,1.29781355,2063.7,2063.4,4.84633]
[1742955840711,1.29781355,2063.7,2063.3,4.84638]
[1742955841011,1.29781355,2063.7,2063.3,9.69285]
[1742955841808,1.29781355,2063.7,2063.4,4.84625]
[1742955843609,1.29781355,2063.7,2063.4,9.69243]
[1742955843813,1.29781355,2063.7,2063.4,4.84618]
[1742955844213,0.763,2063.8,2063.3,0.04846042]
[1742955844388,2.06081355,2063.8,2063.5,4.846]
[1742955845410,1.29781355,2063.7,2063.4,4.84625]
[1742955846621,1.29781355,2063.7,2063.4,4.8462]
[1742955851121,1.29781355,2063.6,2063.3,5.10069119]
[1742955851318,1.29781355,2063.6,2063.3,5.10060119]
[1742955852718,1.29781355,2063.6,2063.3,9.94703119]
[1742955853027,1.29781355,2063.6,2063.3,5.10053119]
[1742955853327,1.29781355,2063.7,2063.4,10.28468312]
[1742955854028,1.29781355,2063.7,2063.4,5.43846312]
[1742955854906,3.0,2063.4,2063.0,0.7869]
[1742955855118,1.29781355,2063.4,2063.1,4.84695]
[1742955855297,1.29781355,2063.4,2063.1,9.69384]
[1742955855498,1.29781355,2063.4,2063.1,4.84689]
[1742955855909,1.29781355,2063.3,2063.0,4.84722]
[1742955856106,1.29781355,2063.1,2062.9,5.63425]
[1742955856324,1.29781355,2063.1,2062.6,4.84813]
[1742955856325,6.14512355,2063.0,2062.6,4.84813]
[1742955856491,1.29781355,2062.8,2062.6,1.048362]
[1742955856907,1.29781355,2062.9,2062.7,4.84795]
[1742955857125,1.29781355,2062.9,2062.6,5.896402]
[1742955857503,1.29781355,2062.9,2062.7,4.84789]
[1742955857720,4.29781355,2063.0,2062.6,20.396552]
[1742955857900,1.29781355,2062.9,2062.6,19.34819]
[1742955858100,1.29781355,2062.9,2062.7,4.84796]
[1742955858721,1.29781355,2062.9,2062.6,19.34819]
[1742955858912,3.0,2063.0,2062.6,19.34819]
[1742955859211,3.0,2063.0,2062.6,24.19627]
[1742955859705,7.84733,2063.0,2062.6,19.34808]
[1742955860233,3.0,2063.0,2062.6,24.19623]
[1742955860400,3.0,2063.0,2062.7,4.84781]
[1742955860593,3.0,2063.0,2062.8,4.84777]
[1742955861031,3.0,2063.0,2062.7,4.84781]
[1742955863831,3.0,2063.0,2062.8,14.5]
[1742955865929,3.0,2063.0,2062.7,4.84781]
[1742955866432,3.0,2063.0,2062.8,4.84768]
[1742955866802,0.8152,2063.1,2062.8,2.50884822]
[1742955867132,5.32071723,2063.4,2062.9,4.84733]
[1742955867635,5.32071723,2063.4,2063.0,4.84728]
[1742955869339,0.7955,2063.5,2063.2,4.8467]
[1742955869538,3.11621723,2063.7,2063.3,4.84651]
[1742955869860,6.11621723,2063.7,2063.2,4.8467]
[1742955870142,6.11621723,2063.7,2063.3,9.69293]
[1742955870311,6.11621723,2063.7,2063.4,4.84635]
[1742955870312,5.32071723,2063.7,2063.4,4.84635]
[1742955870640,3.11621723,2063.9,2063.4,6.63393]
[1742955870847,3.0,2063.8,2063.4,6.63393]
[1742955871025,2.32071723,2063.7,2063.4,6.63393]
[1742955871430,2.32071723,2063.7,2063.5,4.8461]
[1742955871620,6.11621723,2063.9,2063.5,4.8461]
[1742955872124,30.28571723,2064.1,2063.6,4.84572]
[1742955872426,3.11621723,2064.3,2063.8,4.84529]
[1742955872637,3.11621723,2064.3,2063.8,4.84526]
[1742955872838,3.11621723,2064.3,2063.9,4.84518]
[1742955873022,3.0,2064.2,2063.9,4.84518]
[1742955873611,3.11621723,2064.3,2063.9,4.84518]
[1742955873944,3.0,2064.2,2063.9,4.84518]
[1742955875949,3.0,2064.2,2063.8,4.84526]
[1742955876839,3.0,2064.2,2063.9,4.84516]
[1742955879347,2.32071723,2064.1,2063.8,4.8454]
[1742955879538,2.32071723,2064.1,2063.8,5.896346]
[1742955880342,2.32071723,2064.1,2063.8,1.050946]
[1742955880542,5.32071723,2064.1,2063.8,1.050946]
[1742955880742,0.7725,2064.0,2063.7,4.84565]
[1742955881115,2.32071723,2063.9,2063.5,6.801193]
[1742955882752,2.32071723,2063.9,2063.6,4.84587]
[1742955883841,0.7725,2064.0,2063.6,4.84574]
[1742955884021,0.7725,2064.0,2063.7,5.5256843]
[1742955885554,0.7725,2064.0,2063.7,20.0256843]
[1742955886327,0.7725,2064.0,2063.7,15.1800943]
[1742955887456,0.7725,2064.0,2063.7,20.0256843]
[1742955894162,0.7725,2064.0,2063.8,4.8454]
[1742955894539,5.183,2064.5,2064.0,4.84476]
[1742955894540,0.7863,2064.4,2064.0,4.84476]
[1742955894740,6.10701723,2064.4,2064.0,4.84476]
[1742955895264,6.10701723,2064.4,2063.9,9.69015]
[1742955895461,6.10701723,2064.4,2063.9,9.69008]
[1742955895765,6.10701723,2064.4,2064.0,4.84495]
[1742955896762,6.10701723,2064.4,2063.9,9.69009]
[1742955896968,6.10701723,2064.4,2063.9,12.50182227]
[1742955897554,6.10701723,2064.4,2063.9,4.84502]
[1742955897837,10.95108723,2064.4,2064.0,14.5]
[1742955898262,2.32071723,2064.2,2064.0,14.5]
[1742955898782,2.32071723,2064.2,2063.8,4.84542]
[1742955899282,3.7863,2064.1,2063.8,19.34542]
[1742955899464,3.7863,2064.1,2063.8,7.40857743]
[1742955899665,3.7863,2064.1,2063.8,4.84542]
[1742955903461,3.7863,2064.1,2063.9,4.84511]
[1742955904467,3.7863,2064.1,2063.8,19.34537]
[1742955905566,3.7863,2064.1,2063.8,24.1906]
[1742955906062,3.7863,2064.1,2063.9,4.84511]
[1742955906262,3.0,2064.1,2063.9,7.33215343]
[1742955906436,3.0,2064.1,2063.9,7.33204343]
[1742955907063,3.0,2064.1,2063.9,2.48704343]
[1742955908469,0.7863,2064.3,2063.9,3.24744343]
[1742955908655,0.55,2064.5,2064.1,4.8446]
[1742955908837,0.55,2064.5,2064.2,4.84444]
[1742955909041,3.0,2064.4,2064.1,4.8446]
[1742955909542,3.0,2064.4,2064.1,19.3446]
[1742955909841,3.0,2064.4,2064.1,21.66650911]
[1742955913377,3.0,2064.4,2064.2,4.84444]
[1742955915046,3.0,2064.4,2064.2,4.84434]
[1742955915346,0.55,2064.5,2064.3,4.84409]
[1742955915676,0.55,2064.5,2064.4,4.84402]
[1742955915875,0.55,2064.5,2064.4,5.889411]
[1742955916748,0.55,2064.5,2064.4,6.655211]
[1742955916971,0.55,2064.5,2064.4,21.155211]
[1742955918481,0.55,2064.5,2064.4,20.389411]
[1742955918782,0.55,2064.5,2064.4,1.045391]
[1742955919368,0.55,2064.5,2064.3,4.84409]
[1742955920583,0.55,2064.5,2064.2,4.84443]
[1742955921860,0.7926,2064.4,2064.1,19.3445]
[1742955922064,3.7926,2064.4,2064.1,4.8445]
[1742955923885,3.7926,2064.4,2064.0,4.8449]
[1742955924182,3.7926,2064.4,2064.1,2.419009]
[1742955924364,3.7926,2064.4,2064.0,4.84481]
[1742955924565,3.7926,2064.4,2064.0,19.34481]
[1742955925491,3.7926,2064.4,2064.1,4.84471]
[1742955927363,3.7926,2064.4,2064.0,19.34481]
[1742955927570,3.0,2064.2,2063.8,0.7658]
[1742955927795,0.8044,2064.1,2063.8,5.57133645]
[1742955931899,0.8044,2064.1,2063.8,10.41665645]
[1742955932096,0.8044,2064.1,2063.9,4.84519]
[1742955932398,0.8044,2064.1,2063.8,5.57133645]
[1742955933069,0.8044,2064.1,2063.8,10.41663645]
[1742955933270,0.8044,2064.1,2063.9,1.10967308]
[1742955934175,0.8044,2064.1,2063.8,0.72605645]
[1742955935069,0.8044,2064.1,2063.8,5.57144645]
[1742955938705,0.8044,2064.1,2063.8,0.72605645]
[1742955938706,3.0,2064.0,2063.8,0.72605645]
[1742955939287,7.84498,2064.0,2063.7,0.6800943]
[1742955939707,3.0,2064.0,2063.7,0.6800943]
[1742955940703,3.0,2064.0,2063.7,5.5257443]
[1742955941076,3.0,2064.0,2063.7,0.6800943]
[1742955941982,0.8203,2063.9,2063.6,4.8458]
[1742955957225,0.8203,2063.9,2063.5,4.84609]
[1742955957437,0.8206,2063.6,2063.2,4.84668]
[1742955957596,8.66661,2063.6,2063.1,5.66813]
[1742955957792,8.66661,2063.6,2063.1,6.81744323]
[1742955958296,8.66661,2063.6,2063.1,1.14931323]
[1742955958297,0.7974,2063.5,2063.1,1.14931323]
[1742955958490,3.0,2063.4,2063.0,4.84721]
[1742955958907,2.09659085,2063.3,2062.9,4.84748]
[1742955959593,2.09659085,2063.3,2062.9,9.69483]
[1742955960529,2.09659085,2063.3,2062.9,4.84735]
[1742955960731,1.29919085,2063.2,2062.9,5.891872]
[1742955961027,7.84697,2063.2,2062.7,4.84779]
[1742955961231,7.96484009,2063.1,2062.7,4.84779]
[1742955961834,3.11770009,2063.1,2062.7,4.84779]
[1742955962129,3.11770009,2063.1,2062.7,9.69561]
[1742955962332,3.11770009,2063.1,2062.7,4.84779]
[1742955962829,3.11770009,2063.1,2062.7,9.69565]
[1742955963027,3.11770009,2063.1,2062.7,4.84779]
[1742955963230,3.11770009,2063.1,2062.8,4.84766]
[1742955963430,0.7974,2063.1,2063.0,4.8473]
[1742955963606,0.7974,2063.3,2063.0,4.8473]
[1742955963802,0.7974,2063.3,2062.9,4.84747]
[1742955964406,0.7974,2063.3,2062.8,4.84771]
[1742955964407,3.0,2063.2,2062.8,4.84771]
[1742955964610,0.7974,2063.1,2062.8,4.84771]
[1742955965737,0.7974,2063.1,2062.7,10.35107077]
[1742955966038,0.7974,2063.1,2062.7,5.50316077]
[1742955966539,0.7974,2063.1,2062.7,10.35097077]
[1742955966903,0.7974,2063.1,2062.7,10.35106077]
[1742955967451,0.7974,2063.1,2062.8,4.84776]
[1742955969744,0.7974,2063.1,2062.7,5.50332077]
[1742955970637,5.6445,2063.1,2062.7,5.50332077]
[1742955971845,0.7974,2063.1,2062.7,5.50328077]
[1742955972463,7.96481009,2063.1,2062.7,5.50328077]
[1742955973218,3.11770009,2063.1,2062.7,5.50328077]
[1742955973950,0.8222,2063.0,2062.6,4.84823]
[1742955975772,0.8222,2063.0,2062.6,9.69632]
[1742955976248,0.8222,2063.0,2062.7,4.84797]
[1742955977949,5.66952,2063.0,2062.7,4.84797]
[1742955978128,0.8222,2063.0,2062.7,4.84797]
[1742955978325,5.66953,2063.0,2062.6,19.34809]
[1742955978528,5.66953,2063.0,2062.6,21.847717]
[1742955979451,4.84754,2062.9,2062.5,4.84847]
[1742955979659,0.7876,2062.8,2062.5,4.84833]
[1742955980037,0.7876,2062.8,2062.6,4.84824]
[1742955981076,0.7876,2062.8,2062.5,19.34842]
[1742955982465,0.7876,2062.8,2062.6,4.84823]
[1742955982838,0.7876,2063.1,2062.9,4.84738]
[1742955983235,0.7876,2063.5,2063.3,4.84645]
[1742955983556,0.7876,2063.5,2063.2,4.84678]
[1742955983727,0.7876,2063.5,2063.2,9.69345]
[1742955984430,0.7876,2063.5,2063.2,9.69337]
[1742955984649,0.7876,2063.5,2063.3,4.84657]
[1742955985037,0.7807,2064.3,2063.3,6.641544]
[1742955985256,5.62505,2064.3,2063.8,4.84519]
[1742955985455,4.8445,2064.2,2063.8,4.84519]
[1742955985654,3.0,2064.2,2063.4,7.9913242]
[1742955985957,3.0,2064.2,2063.8,9.69052]
[1742955986161,3.0,2064.2,2064.0,4.84475]
[1742955986348,3.0,2064.2,2063.5,5.64526242]
[1742955986349,3.0,2064.2,2063.9,4.84515]
[1742955987046,0.7807,2064.3,2064.1,4.84453]
[1742955987240,0.7807,2064.3,2063.9,9.69014]
[1742955987445,3.7807,2064.3,2063.9,4.84504]
[1742955987775,3.0999742,2064.3,2063.9,4.84504]
[1742955988268,3.0,2064.2,2063.9,4.84504]
[1742955991565,3.0,2064.2,2063.8,4.84531]
[1742955991778,3.0,2064.2,2063.9,4.8451]
[1742955992076,3.0,2064.2,2063.9,9.69014]
[1742955992265,3.0,2064.2,2064.0,4.84491]
[1742955993572,3.0,2064.2,2063.9,4.84518]
[1742955995860,6.0999742,2064.3,2063.9,4.84518]
[1742955996035,3.0,2064.2,2063.9,4.84518]
[1742955997067,3.0,2064.2,2063.8,5.329951]
[1742955997969,7.84451,2064.2,2063.8,5.329951]
[1742955998153,7.84451,2064.2,2063.8,4.84542]
[1742955998360,3.0,2064.2,2063.8,4.84542]
[1742955998760,3.0,2064.2,2063.9,4.84504]
[1742955998943,0.7807,2064.3,2064.0,4.84485]
[1742955999340,0.7807,2064.3,2064.0,5.813839]
[1742956000669,0.7859,2064.5,2064.2,4.84449]
[1742956000836,0.7859,2064.5,2064.2,4.8443]
[1742956001041,0.7859,2064.5,2064.3,4.8442]
[1742956001850,0.7859,2064.5,2064.2,4.84439]
[1742956002078,0.7859,2064.5,2064.2,10.8330389]
[1742956002579,0.7859,2064.5,2064.2,5.9886489]
[1742956002964,0.7859,2064.5,2064.2,10.8330389]
[1742956003364,0.7859,2064.5,2064.3,4.84416]
[1742956003557,3.7859,2064.7,2064.4,4.84402]
[1742956003959,3.7859,2064.7,2064.3,4.84419]
[1742956004259,3.7859,2064.7,2064.3,5.92748989]
[1742956006681,3.7859,2064.7,2064.3,5.92735989]
[1742956008288,3.7859,2064.7,2064.4,4.84398]
[1742956010087,3.7859,2064.7,2064.3,5.92749989]